fUSD/lending_fUSD_20260504
["ID","MTS","AMOUNT","RATE_DAILY","PERIOD"]
[421557924,1777879833000,-2500.0,0.00020898,2]
[421557912,1777879833000,-1535.0,0.00020307,2]
[421557920,1777879833000,-219.5,0.00020381,2]
[421557899,1777879833000,-162.0,0.0002,2]
[421557900,1777879833000,-164.0,0.0002,2]
[421557901,1777879833000,-1523.0,0.0002,2]
[421557896,1777879833000,-238.0,0.00019402,2]
[421557897,1777879833000,-894.8,0.00019725,2]
[421557898,1777879833000,-200.0,0.00019861,2]
[421557903,1777879833000,-198.0,0.0002,2]
[421557902,1777879833000,-251.0,0.0002,2]
[421557907,1777879833000,-351.0,0.0002,2]
[421557904,1777879833000,-271.0,0.0002,2]
[421557905,1777879833000,-400.0,0.0002,2]
[421557906,1777879833000,-1333.0,0.0002,2]
[421557909,1777879833000,-2000.0,0.00020005,2]
[421557908,1777879833000,-382.0,0.0002,2]
[421557910,1777879833000,-9748.35169257,0.00020207,2]
[421557911,1777879833000,-1535.0,0.00020307,2]
[421557981,1777879833000,-683.8837,0.0002234,2]
[421557914,1777879833000,-166.3111652,0.00020307,2]
[421557922,1777879833000,-5387.0384,0.00020851,2]
[421557917,1777879833000,-1535.0,0.00020307,2]
[421557926,1777879833000,-734.91,0.00020951,2]
[421557919,1777879833000,-155.41812626,0.00020307,2]
[421557918,1777879833000,-1005.33290308,0.00020307,2]
[421557915,1777879833000,-1535.0,0.00020307,2]
[421557921,1777879833000,-2463.0,0.00020491,2]
[421557923,1777879833000,-2000.0,0.00020851,2]
[421557982,1777879833000,-683.8837,0.0002234,2]
[421557913,1777879833000,-1535.0,0.00020307,2]
[421557983,1777879833000,-683.8837,0.0002234,2]
[421558014,1777879833000,-500.0,0.00024,2]
[421558016,1777879833000,-1333.0,0.00024,2]
[421558015,1777879833000,-271.0,0.00024,2]
[421558019,1777879833000,-219.5,0.00024324,2]
[421558018,1777879833000,-382.0,0.00024,2]
[421558017,1777879833000,-351.0,0.00024,2]
[421558022,1777879833000,-9748.35169255,0.00024557,2]
[421558021,1777879833000,-2000.0,0.00024451,2]
[421558020,1777879833000,-199.516276,0.00024391,14]
[421558023,1777879833000,-500.0,0.00024657,2]
[421558025,1777879833000,-234.354613,0.00024709,14]
[421558027,1777879833000,-152.0,0.00024854,7]
[421558024,1777879833000,-441.08,0.00024658,2]
[421558029,1777879833000,-153.45,0.00024889,2]
[421558026,1777879833000,-1232.53234011,0.00024729,2]
[421558028,1777879833000,-152.0,0.00024879,7]
[421558035,1777879833000,-1335.0,0.00025,2]
[421558032,1777879833000,-253.43984619,0.00025,2]
[421558033,1777879833000,-215.0,0.00025,2]
[421558036,1777879833000,-353.07624584,0.00025,2]
[421558031,1777879833000,-1535.59857982,0.00025,2]
[421558034,1777879833000,-278.0,0.00025,2]
[421558038,1777879833000,-384.0,0.00025068,2]
[421558037,1777879833000,-385.7161496,0.00025,2]
[421558039,1777879833000,-280.0,0.00025155,6]
[421557984,1777879833000,-219.5,0.00022353,2]
[421558030,1777879833000,-183.0,0.00025,2]
[421558013,1777879833000,-198.0,0.00024,2]
[421557916,1777879833000,-1535.0,0.00020307,2]
[421558008,1777879833000,-500.0,0.0002377,2]
[421557985,1777879833000,-9748.35169255,0.00022382,2]
[421557987,1777879833000,-683.8837,0.00022562,2]
[421557986,1777879833000,-218.73146253,0.00022562,2]
[421557988,1777879833000,-683.8837,0.00022562,2]
[421557993,1777879833000,-978.50242852,0.0002257,2]
[421557992,1777879833000,-633.54,0.00022562,2]
[421557990,1777879833000,-300.2535572,0.00022562,2]
[421558000,1777879833000,-162.0,0.00023,7]
[421557991,1777879833000,-7766.09,0.00022562,2]
[421557998,1777879833000,-271.0,0.00023,2]
[421557999,1777879833000,-1333.0,0.00023,2]
[421557994,1777879833000,-164.0,0.00023,2]
[421557997,1777879833000,-198.0,0.00023,2]
[421557989,1777879833000,-683.8837,0.00022562,2]
[421557995,1777879833000,-1523.0,0.00023,2]
[421557996,1777879833000,-251.0,0.00023,2]
[421558011,1777879833000,-1523.0,0.00024,2]
[421558004,1777879833000,-2463.0,0.00023491,2]
[421558012,1777879833000,-251.0,0.00024,2]
[421558003,1777879833000,-500.0,0.0002347,2]
[421558006,1777879833000,-488.0,0.00023604,7]
[421558007,1777879833000,-814.0,0.00023604,7]
[421558005,1777879833000,-739.0,0.00023604,7]
[421558002,1777879833000,-382.0,0.00023,2]
[421558001,1777879833000,-351.0,0.00023,2]
[421558010,1777879833000,-164.0,0.00024,2]
[421558009,1777879833000,-500.0,0.0002397,2]
[421558059,1777879834000,-533.36,0.00027397,10]
[421558083,1777879834000,-231.09,0.0002882,2]
[421558064,1777879834000,-1393.2,0.00027671,30]
[421558063,1777879834000,-500.0,0.000275,15]
[421558066,1777879834000,-203.24859229,0.0002801,5]
[421558065,1777879834000,-360.57,0.00028,2]
[421558068,1777879834000,-300.0,0.00028595,2]
[421558069,1777879834000,-222.46,0.0002863,2]
[421558067,1777879834000,-219.5,0.00028267,2]
[421558073,1777879834000,-501.88868096,0.00028682,5]
[421558076,1777879834000,-222.46,0.00028725,2]
[421558072,1777879834000,-231.09,0.00028661,7]
[421558077,1777879834000,-231.09,0.00028725,2]
[421558080,1777879834000,-222.46,0.00028788,30]
[421558075,1777879834000,-231.09,0.00028693,30]
[421558074,1777879834000,-222.46,0.00028693,30]
[421558078,1777879834000,-222.46,0.00028756,7]
[421558062,1777879834000,-150.0,0.00027463,5]
[421558084,1777879834000,-1622.326,0.00028826,21]
[421558061,1777879834000,-500.0,0.000274,7]
[421558050,1777879834000,-352.12827399,0.00027397,2]
[421558070,1777879834000,-231.09,0.0002863,2]
[421558040,1777879834000,-219.5,0.00026296,2]
[421558048,1777879834000,-500.0,0.00027397,2]
[421558041,1777879834000,-2000.0,0.00026674,2]
[421558042,1777879834000,-9748.35169255,0.00026731,2]
[421558045,1777879834000,-634.37898409,0.00027039,2]
[421558046,1777879834000,-682.0,0.00027166,5]
[421558043,1777879834000,-500.0,0.00027039,2]
[421558044,1777879834000,-376.97318453,0.00027039,2]
[421558047,1777879834000,-500.0,0.00027397,2]
[421558071,1777879834000,-222.46,0.00028661,7]
[421558079,1777879834000,-231.09,0.00028756,7]
[421558053,1777879834000,-401.19614686,0.00027397,2]
[421558052,1777879834000,-185.31866047,0.00027397,2]
[421558049,1777879834000,-150.0,0.00027397,2]
[421558054,1777879834000,-1500.0,0.00027397,2]
[421558055,1777879834000,-207.63,0.00027397,2]
[421558056,1777879834000,-441.08,0.00027397,2]
[421558058,1777879834000,-300.0,0.00027397,2]
[421558057,1777879834000,-1015.37,0.00027397,2]
[421558060,1777879834000,-508.0,0.00027397,10]
[421558051,1777879834000,-150.0,0.00027397,2]
[421558082,1777879834000,-222.46,0.0002882,2]
[421558081,1777879834000,-231.09,0.00028788,30]
[421558095,1777879834000,-222.46,0.00028947,7]
[421558121,1777879834000,-2101.43795739,0.0003,10]
[421558112,1777879834000,-231.09,0.00029201,2]
[421558110,1777879834000,-231.09,0.00029169,30]
[421558122,1777879834000,-500.0,0.0003,30]
[421558113,1777879834000,-222.53,0.00029232,7]
[421558114,1777879834000,-231.21,0.00029232,7]
[421558116,1777879834000,-360.57,0.0002999,2]
[421558117,1777879834000,-378.43302896,0.0003,2]
[421558120,1777879834000,-160.40572763,0.0003,2]
[421558115,1777879834000,-150.0,0.00029534,2]
[421558119,1777879834000,-905.46569416,0.0003,2]
[421558118,1777879834000,-2616.10127688,0.0003,2]
[421558123,1777879834000,-31.02154151,0.0003,5]
[421558085,1777879834000,-187.606,0.00028826,21]
[421558126,1777879834000,-1206.96082785,0.0003,5]
[421558125,1777879834000,-1950.17403298,0.0003,5]
[421558127,1777879834000,-2412.11522595,0.0003,5]
[421558128,1777879834000,-301.48251273,0.0003,5]
[421558129,1777879834000,-770.68,0.00026491,2]
[421558111,1777879834000,-222.46,0.00029201,2]
[421558105,1777879834000,-222.46,0.00029105,2]
[421558124,1777879834000,-1294.64297778,0.0003,5]
[421558104,1777879834000,-231.09,0.00029074,30]
[421558101,1777879834000,-222.46,0.00029042,7]
[421558086,1777879834000,-820.0,0.00028852,5]
[421558096,1777879834000,-231.09,0.00028947,7]
[421558087,1777879834000,-222.46,0.00028852,7]
[421558094,1777879834000,-231.09,0.00028915,2]
[421558088,1777879834000,-231.09,0.00028852,7]
[421558089,1777879834000,-222.46,0.00028883,30]
[421558090,1777879834000,-231.09,0.00028883,30]
[421558092,1777879834000,-6187.07528348,0.00028906,2]
[421558093,1777879834000,-222.46,0.00028915,2]
[421558097,1777879834000,-222.46,0.00028979,30]
[421558107,1777879834000,-222.46,0.00029137,7]
[421558103,1777879834000,-222.46,0.00029074,30]
[421558106,1777879834000,-231.09,0.00029105,2]
[421558102,1777879834000,-231.09,0.00029042,7]
[421558100,1777879834000,-231.09,0.0002901,2]
[421558091,1777879834000,-3561.27640907,0.00028906,2]
[421558098,1777879834000,-231.09,0.00028979,30]
[421558108,1777879834000,-231.09,0.00029137,7]
[421558109,1777879834000,-222.46,0.00029169,30]
[421558099,1777879834000,-222.46,0.0002901,2]
[421558132,1777879838000,-1692.32,0.00026491,2]
[421558140,1777879838000,-231.43,0.0002882,2]
[421558131,1777879838000,-1000.0,0.00024658,2]
[421558133,1777879838000,-231.43,0.0002863,2]
[421558134,1777879838000,-231.43,0.00028661,7]
[421558136,1777879838000,-423.33,0.00028715,10]
[421558135,1777879838000,-231.43,0.00028693,30]
[421558139,1777879838000,-231.43,0.00028788,30]
[421558138,1777879838000,-231.43,0.00028756,7]
[421558130,1777879838000,-2500.0,0.00020898,2]
[421558137,1777879838000,-231.43,0.00028725,2]
[421558141,1777879838000,-231.43,0.00028852,7]
[421558146,1777879838000,-4405.66696543,0.0003,5]
[421558151,1777879838000,-571.18927001,0.0003,5]
[421558147,1777879838000,-2331.52800299,0.0003,5]
[421558149,1777879838000,-231.43,0.00028947,7]
[421558145,1777879838000,-12733.10043463,0.0003,5]
[421558148,1777879838000,-503.47737862,0.0003,5]
[421558144,1777879838000,-2463.0,0.00029491,2]
[421558142,1777879838000,-231.43,0.00028883,30]
[421558143,1777879838000,-231.43,0.00028915,2]
[421558150,1777879838000,-918.60513351,0.0003,5]
[421558169,1777879840000,-9579.99,0.0003,5]
[421558168,1777879840000,-231.43,0.00029169,30]
[421558167,1777879840000,-231.43,0.00029137,7]
[421558166,1777879840000,-231.43,0.00029105,2]
[421558165,1777879840000,-231.43,0.00029074,30]
[421558162,1777879840000,-231.43,0.00028979,30]
[421558164,1777879840000,-231.43,0.00029042,7]
[421558163,1777879840000,-231.43,0.0002901,2]
[421558171,1777879841000,-2999.31116892,0.0003,5]
[421558170,1777879841000,-231.43,0.00029201,2]
[421558172,1777879841000,-231.52,0.00029232,7]
[421558173,1777879841000,-287.08482133,0.0003,5]
[421558191,1777879843000,-652.85,0.0003,5]
[421558179,1777879843000,-347.15,0.00024658,2]
[421558178,1777879843000,-3532.0,0.00017491,2]
[421558180,1777879843000,-347.15,0.00024946,7]
[421558182,1777879843000,-347.15,0.00025523,2]
[421558192,1777879843000,-2422.86433199,0.0003,5]
[421558184,1777879843000,-347.15,0.00026099,30]
[421558183,1777879843000,-347.15,0.00025811,7]
[421558186,1777879843000,-1500.0,0.00027397,2]
[421558188,1777879843000,-275.11988692,0.0003,5]
[421558187,1777879843000,-57.02757058,0.0003,5]
[421558185,1777879843000,-347.15,0.00026388,2]
[421558189,1777879843000,-25795.14469426,0.0003,5]
[421558190,1777879843000,-347.15,0.00026676,7]
[421558181,1777879843000,-347.15,0.00025234,30]
[421558199,1777879846000,-152.0,0.00024854,7]
[421558200,1777879846000,-152.0,0.00024879,7]
[421558204,1777879846000,-347.15,0.00027541,7]
[421558202,1777879846000,-505.0,0.00027137,2]
[421558203,1777879846000,-347.15,0.00027253,2]
[421558201,1777879846000,-347.15,0.00026964,30]
[421558205,1777879846000,-347.15,0.0002783,30]
[421558207,1777879846000,-505.0,0.00028216,3]
[421558209,1777879846000,-347.15,0.00028695,30]
[421558206,1777879846000,-347.15,0.00028118,2]
[421558208,1777879846000,-347.15,0.00028406,7]
[421558210,1777879846000,-113.6623853,0.00028983,2]
[421558219,1777879847000,-580.4780873,0.0003,5]
[421558217,1777879847000,-169.82740709,0.0002999,10]
[421558216,1777879847000,-182.94259291,0.0002999,10]
[421558215,1777879847000,-347.15,0.00029848,2]
[421558213,1777879847000,-505.0,0.00029295,4]
[421558211,1777879847000,-233.4876147,0.00028983,2]
[421558212,1777879847000,-347.15,0.00029271,7]
[421558214,1777879847000,-347.15,0.0002956,30]
[421558223,1777880246000,280.0,8.219e-05,2]
[421558224,1777880433000,241.272,0.0003,120]
[421558225,1777880666000,280.0,8.219e-05,2]
[421558229,1777880793000,-160.7,0.00016438,2]
[421558231,1777880793000,-790.89332983,0.00016493,2]
[421558230,1777880793000,-203.30553174,0.00016465,2]
[421558232,1777880806000,278.855565,0.000294,120]
[421558233,1777880885000,366.787073,0.000294,120]
[421558235,1777880926000,183.393537,0.000294,120]
[421558263,1777881031000,-287.0,0.00018433,2]
[421558259,1777881031000,-300.0,0.00018319,2]
[421558256,1777881031000,-164.76396339,0.000182,2]
[421558257,1777881031000,-2500.0,0.00018319,2]
[421558261,1777881031000,-216.7,0.0001841,2]
[421558270,1777881031000,-417.0,0.00018912,2]
[421558271,1777881031000,-280.0,0.00019004,2]
[421558269,1777881031000,-2463.0,0.00018912,2]
[421558274,1777881031000,-1066.0,0.0002,2]
[421558255,1777881031000,-164.76396339,0.00018,2]
[421558262,1777881031000,-265.2008,0.00018412,2]
[421558260,1777881031000,-164.76396339,0.000184,2]
[421558264,1777881031000,-165.7905639,0.00018818,2]
[421558268,1777881031000,-1211.947,0.00018912,2]
[421558266,1777881031000,-3535.0,0.00018912,2]
[421558265,1777881031000,-150.0,0.00018911,2]
[421558273,1777881031000,-154.0,0.0002,2]
[421558258,1777881031000,-200.0,0.00018319,2]
[421558252,1777881031000,-44.14374039,0.00016904,2]
[421558253,1777881031000,-121.64682351,0.00016904,2]
[421558237,1777881031000,-581.72491626,0.00016654,2]
[421558238,1777881031000,-691.79050064,0.00016654,2]
[421558243,1777881031000,-331.0,0.00016874,2]
[421558240,1777881031000,-357.9562631,0.00016654,2]
[421558241,1777881031000,-165.7905639,0.00016791,2]
[421558246,1777881031000,-125.72297065,0.00016875,2]
[421558239,1777881031000,-868.52832,0.00016654,2]
[421558247,1777881031000,-2374.27702935,0.00016875,2]
[421558242,1777881031000,-300.0,0.00016874,2]
[421558244,1777881031000,-2220.51234389,0.00016875,2]
[421558245,1777881031000,-279.48765611,0.00016875,2]
[421558248,1777881031000,-992.45898941,0.00016875,2]
[421558250,1777881031000,-369.98931999,0.00016875,2]
[421558249,1777881031000,-254.14013485,0.00016875,2]
[421558254,1777881031000,-162.48539177,0.00017283,2]
[421558251,1777881031000,-883.41155575,0.00016875,2]
[421558267,1777881031000,-623.0,0.00018912,2]
[421558276,1777881031000,-154.0,0.0002,2]
[421558286,1777881031000,-1015.04698736,0.0002055,2]
[421558294,1777881031000,-165.85293028,0.0002065,2]
[421558301,1777881031000,-2589.68,0.00020873,2]
[421558312,1777881031000,-203.63556858,0.00021253,2]
[421558313,1777881031000,-670.58624095,0.00021253,2]
[421558304,1777881031000,-401.0,0.00021,2]
[421558303,1777881031000,-1066.0,0.00021,2]
[421558315,1777881031000,-151.0,0.00021253,2]
[421558302,1777881031000,-745.67,0.00020997,2]
[421558314,1777881031000,-8882.6885148,0.00021253,2]
[421558305,1777881031000,-154.0,0.00021,2]
[421558306,1777881031000,-189.0,0.00021,2]
[421558309,1777881031000,-150.0,0.00021005,2]
[421558311,1777881031000,-1377.42282659,0.00021253,2]
[421558284,1777881031000,-216.29445602,0.0002055,2]
[421558310,1777881031000,-200.0,0.00021135,2]
[421558316,1777881031000,-205.87337619,0.00021253,2]
[421558307,1777881031000,-933.0,0.00021,2]
[421558296,1777881031000,-3802.72706972,0.0002065,2]
[421558308,1777881031000,-268.0,0.00021,2]
[421558298,1777881031000,-8626.9928,0.00020851,2]
[421558275,1777881031000,-401.0,0.0002,2]
[421558292,1777881031000,-500.0,0.00020621,2]
[421558281,1777881031000,-500.0,0.00020348,2]
[421558278,1777881031000,-933.0,0.0002,2]
[421558280,1777881031000,-500.0,0.00020036,2]
[421558285,1777881031000,-1870.88949691,0.0002055,2]
[421558277,1777881031000,-189.0,0.0002,2]
[421558279,1777881031000,-268.0,0.0002,2]
[421558282,1777881031000,-89.70153088,0.00020381,2]
[421558287,1777881031000,-333.2607817,0.0002055,2]
[421558288,1777881031000,-160.0,0.00017283,2]
[421558290,1777881031000,-3571.97550058,0.0002055,2]
[421558291,1777881031000,-904.65497743,0.0002055,2]
[421558300,1777881031000,-200.0,0.00020853,2]
[421558299,1777881031000,-2000.0,0.00020851,2]
[421558283,1777881031000,-126.99846912,0.00020381,2]
[421558338,1777881032000,-2801.8535123,0.00023678,2]
[421558337,1777881032000,-2198.1464877,0.00023678,2]
[421558335,1777881032000,-268.0,0.00023,2]
[421558334,1777881032000,-933.0,0.00023,2]
[421558340,1777881032000,-401.0,0.00024,2]
[421558341,1777881032000,-189.0,0.00024,2]
[421558342,1777881032000,-933.0,0.00024,2]
[421558344,1777881032000,-2000.0,0.00024048,2]
[421558354,1777881032000,-189.77,0.00024658,2]
[421558343,1777881032000,-268.0,0.00024,2]
[421558349,1777881032000,-14175.006,0.00024558,2]
[421558336,1777881032000,-975.0713971,0.00023173,2]
[421558351,1777881032000,-1000.0,0.00024658,2]
[421558339,1777881032000,-1066.0,0.00024,2]
[421558333,1777881032000,-189.0,0.00023,2]
[421558320,1777881032000,-1066.0,0.00022,2]
[421558330,1777881032000,-1066.0,0.00023,2]
[421558348,1777881032000,-2242.35732713,0.00024557,2]
[421558317,1777881032000,-2000.0,0.00021376,2]
[421558327,1777881032000,-254.92530386,0.00022407,2]
[421558329,1777881032000,-254.92530383,0.00022407,2]
[421558328,1777881032000,-254.92530383,0.00022407,2]
[421558318,1777881032000,-2463.0,0.00021912,2]
[421558332,1777881032000,-154.0,0.00023,2]
[421558325,1777881032000,-268.0,0.00022,2]
[421558323,1777881032000,-189.0,0.00022,2]
[421558322,1777881032000,-154.0,0.00022,2]
[421558321,1777881032000,-401.0,0.00022,2]
[421558324,1777881032000,-933.0,0.00022,2]
[421558326,1777881032000,-216.7,0.00022353,2]
[421558331,1777881032000,-401.0,0.00023,2]
[421558319,1777881032000,-417.0,0.00021912,2]
[421558353,1777881032000,-189.45,0.00024658,2]
[421558360,1777881032000,-500.0,0.00024911,2]
[421558355,1777881032000,-157.42,0.00024658,2]
[421558381,1777881032000,-2463.0,0.00024912,2]
[421558382,1777881032000,-417.0,0.00024912,2]
[421558370,1777881032000,-500.0,0.00024911,2]
[421558375,1777881032000,-235.25217725,0.00024911,2]
[421558372,1777881032000,-500.0,0.00024911,2]
[421558373,1777881032000,-500.0,0.00024911,2]
[421558371,1777881032000,-299.46573888,0.00024911,2]
[421558378,1777881032000,-500.0,0.00024911,2]
[421558376,1777881032000,-500.0,0.00024911,2]
[421558380,1777881032000,-500.0,0.00024911,2]
[421558374,1777881032000,-500.0,0.00024911,2]
[421558379,1777881032000,-500.0,0.00024911,2]
[421558383,1777881032000,-500.0,0.00024999,2]
[421558352,1777881032000,-411.68,0.00024658,2]
[421558377,1777881032000,-500.0,0.00024911,2]
[421558364,1777881032000,-500.0,0.00024911,2]
[421558384,1777881032000,-84308.00796254,0.00025,7]
[421558362,1777881032000,-500.0,0.00024911,2]
[421558347,1777881032000,-150.085,0.00024391,6]
[421558345,1777881032000,-216.7,0.00024324,2]
[421558365,1777881032000,-500.0,0.00024911,2]
[421558346,1777881032000,-1592.428,0.00024391,6]
[421558357,1777881032000,-5145.10585686,0.000249,2]
[421558367,1777881032000,-500.0,0.00024911,2]
[421558369,1777881032000,-500.0,0.00024911,2]
[421558350,1777881032000,-500.0,0.00024657,2]
[421558358,1777881032000,-1402.6533,0.000249,2]
[421558359,1777881032000,-500.0,0.00024911,2]
[421558356,1777881032000,-1042.24429495,0.00024729,2]
[421558368,1777881032000,-500.0,0.00024911,2]
[421558363,1777881032000,-500.0,0.00024911,2]
[421558366,1777881032000,-500.0,0.00024911,2]
[421558361,1777881032000,-500.0,0.00024911,2]
[421558393,1777881037000,-168.88,0.00024658,2]
[421558394,1777881037000,-20667.37805702,0.00025,7]
[421558395,1777881037000,-287.54987052,0.00025,7]
[421558397,1777881037000,-624.36859413,0.00025,5]
[421558396,1777881037000,-5254.14176475,0.00025,7]
[421558399,1777881037000,-162.48539177,0.00025,7]
[421558398,1777881037000,-1068.0,0.00025,2]
[421558401,1777881037000,-203.0,0.00025,2]
[421558400,1777881037000,-402.75215156,0.00025,2]
[421558403,1777881037000,-278.52156229,0.00025,2]
[421558405,1777881037000,-599.0,0.00025257,10]
[421558407,1777881037000,-524.0,0.00025587,10]
[421558410,1777881037000,-259.0,0.0002567,2]
[421558409,1777881037000,-1062.0,0.00025587,10]
[421558412,1777881037000,-162.48539177,0.000258,7]
[421558413,1777881037000,-1118.0,0.00025965,2]
[421558414,1777881037000,-216.7,0.00026296,2]
[421558411,1777881037000,-157.42,0.00025753,7]
[421558402,1777881037000,-935.0,0.00025,2]
[421558427,1777881038000,-300.0,0.00027397,2]
[421558424,1777881038000,-204.70864528,0.00027123,2]
[421558426,1777881038000,-1500.0,0.00027397,2]
[421558420,1777881038000,-2000.0,0.0002672,2]
[421558421,1777881038000,-162.48539177,0.00027,3]
[421558418,1777881038000,-5145.10585679,0.00026553,2]
[421558419,1777881038000,-407.0,0.00026602,2]
[421558428,1777881038000,-411.68,0.00027397,2]
[421558417,1777881038000,-162.48539177,0.000265,7]
[421558416,1777881038000,-259.0,0.00026492,2]
[421558415,1777881038000,-280.0,0.00026487,7]
[421558422,1777881038000,-162.48539177,0.00027,3]
[421558423,1777881038000,-150.0,0.00027123,2]
[421558430,1777881038000,-434.4,0.00027397,10]
[421558429,1777881038000,-227.8,0.00027397,10]
[421558425,1777881038000,-500.0,0.00027137,2]
[421558459,1777881038000,-444.87709628,0.00028331,2]
[421558450,1777881038000,-216.7,0.00028267,2]
[421558453,1777881038000,-796.88151327,0.000283,10]
[421558444,1777881038000,-500.0,0.00028174,3]
[421558456,1777881038000,-3310.6,0.00028321,2]
[421558434,1777881038000,-500.0,0.000274,7]
[421558441,1777881038000,-434.81,0.00028,2]
[421558436,1777881038000,-2463.0,0.00027912,2]
[421558447,1777881038000,-5145.10585679,0.00028207,2]
[421558432,1777881038000,-362.0,0.00027397,10]
[421558438,1777881038000,-411.0,0.00027912,2]
[421558522,1777881040000,-173.56207387,0.00029999,2]
[421558512,1777881040000,-5145.10585679,0.0002986,2]
[421558516,1777881040000,-3310.6,0.0002999,2]
[421558521,1777881040000,-500.0,0.00029999,2]
[421558517,1777881040000,-151.0,0.00029997,7]
[421558523,1777881040000,-235.97169847,0.00029999,2]
[421558534,1777881040000,-411.68,0.00030137,2]
[421558533,1777881040000,-1001.07,0.000301,30]
[421558526,1777881040000,-18017.14496069,0.0003,10]
[421558530,1777881040000,-1001.07,0.0003,30]
[421558532,1777881040000,-500.0,0.0003,90]
[421558528,1777881040000,-259.0,0.0003,10]
[421558525,1777881040000,-47621.01075302,0.0003,5]
[421558527,1777881040000,-76255.43664262,0.0003,2]
[421558519,1777881040000,-280.8373028,0.00029999,2]
[421558529,1777881040000,-160.0,0.0003,10]
[421558531,1777881040000,-500.0,0.0003,90]
[421558535,1777881040000,-1007.6,0.00030137,2]
[421558536,1777881040000,-649.0,0.00030137,120]
[421558538,1777881040000,-1001.07,0.000302,30]
[421558524,1777881040000,-745.67,0.00029999,60]
[421558515,1777881040000,-3310.6,0.0002999,2]
[421558508,1777881040000,-2000.0,0.00029392,2]
[421558513,1777881040000,-4549.80884186,0.000299,2]
[421558539,1777881040000,-216.7,0.00030239,2]
[421558492,1777881040000,-25.45552252,0.00028331,2]
[421558493,1777881040000,-23793.4179082,0.00028331,2]
[421558494,1777881040000,-1402.5057008,0.00028331,2]
[421558495,1777881040000,-8821.4784053,0.00028331,2]
[421558506,1777881040000,-157.43,0.00029232,2]
[421558496,1777881040000,-445.0,0.00028331,10]
[421558497,1777881040000,-291.0,0.00028331,10]
[421558505,1777881040000,-500.0,0.0002921,4]
[421558503,1777881040000,-187.65,0.00028931,7]
[421558504,1777881040000,-157.42,0.00029031,30]
[421558498,1777881040000,-419.0,0.00028331,10]
[421558501,1777881040000,-157.42,0.0002883,7]
[421558499,1777881040000,-200.0,0.00028465,2]
[421558500,1777881040000,-187.65,0.0002863,2]
[421558502,1777881040000,-754.0,0.00028904,2]
[421558507,1777881040000,-187.65,0.00029232,30]
[421558510,1777881040000,-183.393537,0.000294,14]
[421558520,1777881040000,-613.88122917,0.00029999,2]
[421558511,1777881040000,-150.0,0.00029534,2]
[421558509,1777881040000,-218.557966,0.000294,14]
[421558514,1777881040000,-150.0,0.00029973,5]
[421558540,1777881040000,-500.0,0.00030247,5]
[421558518,1777881040000,-444.06528886,0.00029999,2]
[421558537,1777881040000,-153.53204047,0.00030137,2]
[421558579,1777881040000,-500.0,0.00031173,5]
[421558589,1777881040000,-151.0,0.00031185,7]
[421558577,1777881040000,-150.0,0.00031011,2]
[421558583,1777881040000,-154.0,0.00031185,30]
[421558582,1777881040000,-161.0,0.00031184,30]